{"text_format":"3","workbook":"xlsx","n_sheets":4,"sheets":["Sheet 1 - Table 2","Results report","Paste data here","Instructions"],"read":"whole","date_system":"1900"}

{"sheet":"Sheet 1 - Table 2","index":0,"n_rows":8,"n_cols":26,"rows_kept":8,"hidden":true}
[null,null,"TreatedByReceptionist","ReferralProcess","HoursOpenRating","HowQuicklySeePractitioner","HowQuicklySeePractitionerRate","HowQuicklySeeAnyPractitioner","HowQuicklySeeAnyPractitionerRate","PractitionerSeenOnSameDayUrgent","WaitingTime","WaitingTimeRate","PhoneClinicGetThrough","PhoneSpeakToPractitioner",null,"ThoroughlyAsked","Listens","PutsAtEase","DecisionsInvolved","PractitionerExplains","TimeSpent","PractitionerPatience","PractitionerCaring","Understand","Cope","Healthy"]
["count","count",{"$f":"COUNT('Paste data here'!M2:M26)","v":25},{"$f":"COUNT('Paste data here'!N2:N26)","v":25},{"$f":"COUNT('Paste data here'!O2:O26)","v":25},null,{"$f":"COUNT('Paste data here'!V2:V26)","v":25},null,{"$f":"COUNT('Paste data here'!X2:X26)","v":25},null,null,{"$f":"COUNT('Paste data here'!AA2:AA26)","v":25},{"$f":"COUNT('Paste data here'!AB2:AB26)","v":25},{"$f":"COUNT('Paste data here'!AC2:AC26)","v":25},null,{"$f":"COUNT('Paste data here'!AE2:AE26)","v":24},{"$f":"COUNT('Paste data here'!AF2:AF26)","v":24},{"$f":"COUNT('Paste data here'!AG2:AG26)","v":24},{"$f":"COUNT('Paste data here'!AH2:AH26)","v":24},{"$f":"COUNT('Paste data here'!AI2:AI26)","v":24},{"$f":"COUNT('Paste data here'!AJ2:AJ26)","v":24},{"$f":"COUNT('Paste data here'!AK2:AK26)","v":24},{"$f":"COUNT('Paste data here'!AL2:AL26)","v":24},{"$f":"COUNT('Paste data here'!AM2:AM26)","v":24},{"$f":"COUNT('Paste data here'!AN2:AN26)","v":24},{"$f":"COUNT('Paste data here'!AO2:AO26)","v":24}]
["total (n)","total (n)",{"$f":"SUM('Paste data here'!M2:M26)","v":134},{"$f":"SUM('Paste data here'!N2:N26)","v":38},{"$f":"SUM('Paste data here'!O2:O26)","v":124},null,{"$f":"SUM('Paste data here'!V2:V26)","v":93},null,{"$f":"SUM('Paste data here'!X2:X26)","v":49},null,null,{"$f":"SUM('Paste data here'!AA2:AA26)","v":127},{"$f":"SUM('Paste data here'!AB2:AB26)","v":123},{"$f":"SUM('Paste data here'!AC2:AC26)","v":34},null,{"$f":"SUM('Paste data here'!AE2:AE26)","v":136},{"$f":"SUM('Paste data here'!AF2:AF26)","v":136},{"$f":"SUM('Paste data here'!AG2:AG26)","v":137},{"$f":"SUM('Paste data here'!AH2:AH26)","v":134},{"$f":"SUM('Paste data here'!AI2:AI26)","v":136},{"$f":"SUM('Paste data here'!AJ2:AJ26)","v":130},{"$f":"SUM('Paste data here'!AK2:AK26)","v":136},{"$f":"SUM('Paste data here'!AL2:AL26)","v":134},{"$f":"SUM('Paste data here'!AM2:AM26)","v":30},{"$f":"SUM('Paste data here'!AN2:AN26)","v":34},{"$f":"SUM('Paste data here'!AO2:AO26)","v":37}]
["not included","not included",{"$f":"COUNTIF('Paste data here'!M2:M26,0)","v":0},{"$f":"COUNTIF('Paste data here'!N2:N26,0)","v":18},{"$f":"COUNTIF('Paste data here'!O2:O26,0)","v":1},{"$f":"COUNTIF('Paste data here'!U2:U26,0)","v":6},{"$f":"COUNTIF('Paste data here'!V2:V26,0)","v":6},{"$f":"COUNTIF('Paste data here'!W2:W26,0)","v":15},{"$f":"COUNTIF('Paste data here'!X2:X26,0)","v":15},{"$f":"COUNTIF('Paste data here'!Y2:Y26,0)","v":16},{"$f":"COUNTIF('Paste data here'!Z2:Z26,0)","v":0},{"$f":"COUNTIF('Paste data here'!AA2:AA26,0)","v":0},{"$f":"COUNTIF('Paste data here'!AB2:AB26,0)","v":2},{"$f":"COUNTIF('Paste data here'!AC2:AC26,0)","v":19},{"$f":"COUNTIF('Paste data here'!AD2:AD26,0)","v":0},{"$f":"COUNTIF('Paste data here'!AE2:AE26,0)","v":0},{"$f":"COUNTIF('Paste data here'!AF2:AF26,0)","v":0},{"$f":"COUNTIF('Paste data here'!AG2:AG26,0)","v":0},{"$f":"COUNTIF('Paste data here'!AH2:AH26,0)","v":0},{"$f":"COUNTIF('Paste data here'!AI2:AI26,0)","v":0},{"$f":"COUNTIF('Paste data here'!AJ2:AJ26,0)","v":0},{"$f":"COUNTIF('Paste data here'!AK2:AK26,0)","v":0},{"$f":"COUNTIF('Paste data here'!AL2:AL26,0)","v":0},{"$f":"COUNTIF('Paste data here'!AM2:AM26,0)","v":2},{"$f":"COUNTIF('Paste data here'!AN2:AN26,0)","v":2},{"$f":"COUNTIF('Paste data here'!AO2:AO26,0)","v":3}]
["Total included","Total included",{"$f":"C2-C4","v":25},{"$f":"D2-D4","v":7},{"$f":"E2-E4","v":24},null,{"$f":"G2-G4","v":19},null,{"$f":"I2-I4","v":10},null,null,{"$f":"L2-L4","v":25},{"$f":"M2-M4","v":23},{"$f":"N2-N4","v":6},null,{"$f":"P2-P4","v":24},24,24,24,24,24,24,24,22,22,21]
["max total","max total",{"$f":"(C2-C4)*6","v":150},{"$f":"(D2-D4)*6","v":42},{"$f":"(E2-E4)*6","v":144},null,{"$f":"(G2-G4)*6","v":114},null,{"$f":"(I2-I4)*6","v":60},null,null,{"$f":"(L2-L4)*6","v":150},{"$f":"(M2-M4)*6","v":138},{"$f":"(N2-N4)*6","v":36},null,{"$f":"(P2-P4)*6","v":144},144,144,144,144,144,144,144,{"$f":"(X2-X4)*3","v":66},{"$f":"(Y2-Y4)*3","v":66},{"$f":"(Z2-Z4)*3","v":63}]
["%","%",{"$f":"(C3-C5)/(C6-C5)*100","v":{"v":87.2,"d":"87"}},{"$f":"(D3-D5)/(D6-D5)*100","v":{"v":88.57142857142857,"d":"89"}},{"$f":"(E3-E5)/(E6-E5)*100","v":{"v":83.33333333333334,"d":"83"}},null,{"$f":"(G3-G5)/(G6-G5)*100","v":{"v":77.89473684210526,"d":"78"}},null,{"$f":"(I3-I5)/(I6-I5)*100","v":78},null,null,{"$f":"(L3-L5)/(L6-L5)*100","v":{"v":81.6,"d":"82"}},{"$f":"(M3-M5)/(M6-M5)*100","v":{"v":86.95652173913044,"d":"87"}},{"$f":"(N3-N5)/(N6-N5)*100","v":{"v":93.33333333333333,"d":"93"}},null,{"$f":"(P3-P5)/(P6-P5)*100","v":{"v":93.33333333333333,"d":"93"}},{"v":93.33333333333333,"d":"93"},{"v":94.16666666666667,"d":"94"},{"v":91.66666666666666,"d":"92"},{"v":93.33333333333333,"d":"93"},{"v":88.33333333333333,"d":"88"},{"v":93.33333333333333,"d":"93"},{"v":91.66666666666666,"d":"92"},{"$f":"100-((X3-X5)/(X6-X5)*100)","v":{"v":81.81818181818181,"d":"82"}},{"$f":"100-((Y3-Y5)/(Y6-Y5)*100)","v":{"v":72.72727272727273,"d":"73"}},{"$f":"100-((Z3-Z5)/(Z6-Z5)*100)","v":{"v":61.904761904761905,"d":"62"}}]
[{"$nulls":22},"min total",{"$f":"X5","v":22}]

{"sheet":"Results report","index":1,"n_rows":37,"n_cols":15,"rows_kept":37}
[]
[null,"Demographic of those covered by this report",{"$nulls":5},"All questions have a maximum (best) score of 100"]
[null,"Number of completed surveys",{"$f":"COUNT('Paste data here'!B2:B26)","v":25},{"$nulls":5},"score","n"]
[null,"Age (average)",{"$f":"AVERAGE('Paste data here'!F2:F26)","v":{"v":47.44,"d":"47.4"}},{"$nulls":4},"Satisfaction Reception",{"$f":"'Sheet 1 - Table 2'!C7+G1","v":{"v":87.2,"d":"87"}},{"$f":"'Sheet 1 - Table 2'!C5","v":25},null,null,"Named practitioner","Any practitioner"]
[null,"Female (%)",{"$f":"(COUNTIF('Paste data here'!G2:G26,\"=Female\")/C3)*100","v":{"v":64,"d":"64.0"}},{"$nulls":4},"Satisfaction Referral",{"$f":"'Sheet 1 - Table 2'!D7","v":{"v":88.57142857142857,"d":"89"}},{"$f":"'Sheet 1 - Table 2'!D5","v":7},null,"Same day",{"$f":"COUNTIF('Paste data here'!U2:U26,1)/C3*100","v":{"v":20,"d":"20.0"}},{"$f":"COUNTIF('Paste data here'!W2:W26,1)/C3*100","v":{"v":16,"d":"16.0"}}]
[{"$nulls":7},"Satisfaction with Access",{"$nulls":3},"Next day",{"$f":"COUNTIF('Paste data here'!U2:U26,2)/C3*100","v":{"v":8,"d":"8.0"}},{"$f":"COUNTIF('Paste data here'!W2:W26,2)/C3*100","v":{"v":4,"d":"4.0"}}]
[{"$nulls":7},"opening hours",{"$f":"'Sheet 1 - Table 2'!E7","v":{"v":83.33333333333334,"d":"83"}},{"$f":"'Sheet 1 - Table 2'!E5","v":24},null,2,{"$f":"COUNTIF('Paste data here'!U2:U26,3)/C3*100","v":{"v":24,"d":"24.0"}},{"$f":"COUNTIF('Paste data here'!W2:W26,3)/C3*100","v":{"v":12,"d":"12.0"}}]
[null,"Ethnicity (%)",{"$nulls":5},"see particular practitioner",{"$f":"'Sheet 1 - Table 2'!G7","v":{"v":77.89473684210526,"d":"78"}},{"$f":"'Sheet 1 - Table 2'!G5","v":19},null,3,{"$f":"COUNTIF('Paste data here'!U2:U26,4)/C3*100","v":{"v":16,"d":"16.0"}},{"$f":"COUNTIF('Paste data here'!W2:W26,4)/C3*100","v":{"v":8,"d":"8.0"}}]
[null,"White",{"$f":"(COUNTIF('Paste data here'!H2:H26,1)/C3)*100","v":100},{"$nulls":4},"see any practitioner",{"$f":"'Sheet 1 - Table 2'!I7","v":78},{"$f":"'Sheet 1 - Table 2'!I5","v":10},null,4,{"$f":"COUNTIF('Paste data here'!U2:U26,5)/C3*100","v":{"v":0,"d":"0.0"}},{"$f":"COUNTIF('Paste data here'!W2:W26,5)/C3*100","v":{"v":0,"d":"0.0"}}]
[null,"Asian",{"$f":"(COUNTIF('Paste data here'!H2:H26,2)/C3)*100","v":0},{"$nulls":4},"wait to be seen",{"$f":"'Sheet 1 - Table 2'!L7","v":{"v":81.6,"d":"82"}},{"$f":"'Sheet 1 - Table 2'!L5","v":25},null,5,{"$f":"COUNTIF('Paste data here'!U2:U26,6)/C3*100","v":{"v":8,"d":"8.0"}},{"$f":"COUNTIF('Paste data here'!W2:W26,6)/C3*100","v":{"v":0,"d":"0.0"}}]
[null,"Black",{"$f":"(COUNTIF('Paste data here'!H2:H26,3)/C3)*100","v":0},{"$nulls":4},"phone reception",{"$f":"'Sheet 1 - Table 2'!M7","v":{"v":86.95652173913044,"d":"87"}},{"$f":"'Sheet 1 - Table 2'!M5","v":23}]
[null,"Mixed",{"$f":"(COUNTIF('Paste data here'!H2:H26,4)/C3)*100","v":0},{"$nulls":4},"phone practitioner",{"$f":"'Sheet 1 - Table 2'!N7","v":{"v":93.33333333333333,"d":"93"}},{"$f":"'Sheet 1 - Table 2'!N5","v":6}]
[null,"Chinese",{"$f":"(COUNTIF('Paste data here'!H2:H26,5)/C3)*100","v":0}]
[null,"Other ethnic group",{"$f":"(COUNTIF('Paste data here'!H2:H26,6)/C3)*100","v":0},{"$nulls":4},"Satisfaction with Practitioner"]
[{"$nulls":7},"How thoroughly the practitioner asks about your symptoms and how you are feeling?",{"$f":"'Sheet 1 - Table 2'!P7","v":{"v":93.33333333333333,"d":"93"}},{"$f":"'Sheet 1 - Table 2'!P5","v":24}]
[null,"Employment (%)",{"$nulls":5},"How well the practitioner listens to what you had to say?",{"$f":"'Sheet 1 - Table 2'!Q7","v":{"v":93.33333333333333,"d":"93"}},{"$f":"'Sheet 1 - Table 2'!Q5","v":24}]
[null,"Employed",{"$f":"(COUNTIF('Paste data here'!J2:J26,1)/C3)*100","v":68},{"$nulls":4},"How well the practitioner puts you at ease during your physical examination?",{"$f":"'Sheet 1 - Table 2'!R7","v":{"v":94.16666666666667,"d":"94"}},{"$f":"'Sheet 1 - Table 2'!R5","v":24},null,"five mins or less",{"$f":"COUNTIF('Paste data here'!Z2:Z26,1)/C3*100","v":{"v":68,"d":"68.0"}},null,"`"]
[null,"Unemployed",{"$f":"(COUNTIF('Paste data here'!J2:J26,2)/C3)*100","v":0},{"$nulls":4},"How much the practitioner involves you in decisions about your care?",{"$f":"'Sheet 1 - Table 2'!S7","v":{"v":91.66666666666666,"d":"92"}},{"$f":"'Sheet 1 - Table 2'!S5","v":24},null,"6 to 10 mins",{"$f":"COUNTIF('Paste data here'!Z2:Z26,2)/C3*100","v":{"v":28.000000000000004,"d":"28.0"}}]
[null,"full time education",{"$f":"(COUNTIF('Paste data here'!J2:J26,3)/C3)*100","v":8},{"$nulls":4},"How well the practitioner explains your problems or any treatment that you need?",{"$f":"'Sheet 1 - Table 2'!T7","v":{"v":93.33333333333333,"d":"93"}},{"$f":"'Sheet 1 - Table 2'!T5","v":24},null,"11 to 20 mins",{"$f":"COUNTIF('Paste data here'!Z2:Z26,3)/C3*100","v":{"v":4,"d":"4.0"}}]
[null,"Unable to work due to long term sickness",{"$f":"(COUNTIF('Paste data here'!J2:J26,14)/C3)*100","v":0},{"$nulls":4},"The amount of time your practitioner spends with you?",{"$f":"'Sheet 1 - Table 2'!U7","v":{"v":88.33333333333333,"d":"88"}},{"$f":"'Sheet 1 - Table 2'!U5","v":24},null,"21 to 30 mins",{"$f":"COUNTIF('Paste data here'!Z2:Z26,4)/C3*100","v":{"v":0,"d":"0.0"}}]
[null,"Looking after your home/family",{"$f":"(COUNTIF('Paste data here'!J2:J26,5)/C3)*100","v":4},{"$nulls":4},"The practitioner's patience with your questions or worries?",{"$f":"'Sheet 1 - Table 2'!V7","v":{"v":93.33333333333333,"d":"93"}},{"$f":"'Sheet 1 - Table 2'!V5","v":24},null,"30 mins or more",{"$f":"COUNTIF('Paste data here'!Z2:Z26,5)/C3*100","v":{"v":0,"d":"0.0"}}]
[null,"Retired",{"$f":"(COUNTIF('Paste data here'!J2:J26,6)/C3)*100","v":20},{"$nulls":4},"The practitioner's caring and concern for you?",{"$f":"'Sheet 1 - Table 2'!W7","v":{"v":91.66666666666666,"d":"92"}},{"$f":"'Sheet 1 - Table 2'!W5","v":24}]
[null,"Other",{"$f":"(COUNTIF('Paste data here'!J2:J26,7)/C3)*100","v":0},{"$nulls":4},"Thinking about a TYPICAL appointment with your USUAL PRACTITIONER, how do you rate the your ability to: "]
[{"$nulls":7},"UNDERSTAND your problems?",{"$f":"'Sheet 1 - Table 2'!X7","v":{"v":81.81818181818181,"d":"82"}},{"$f":"'Sheet 1 - Table 2'!X5","v":22}]
[null,"Visits to the clinic in last 12 months (%)",{"$nulls":5},"Able to COPE with your problems?",{"$f":"'Sheet 1 - Table 2'!Y7","v":{"v":72.72727272727273,"d":"73"}},{"$f":"'Sheet 1 - Table 2'!Y5","v":22}]
[null,"None",{"$f":"(COUNTIF('Paste data here'!L2:L26,0)/C3)*100","v":0},{"$nulls":4},"KEEP YOURSELF healthy?",{"$f":"'Sheet 1 - Table 2'!Z7","v":{"v":61.904761904761905,"d":"62"}},{"$f":"'Sheet 1 - Table 2'!Z5","v":21}]
[null,"1 or 2",{"$f":"(COUNTIF('Paste data here'!L2:L26,1)/C3*100)","v":36}]
[null,"3 or 4",{"$f":"(COUNTIF('Paste data here'!L2:L26,3)/C3*100)","v":36}]
[null,"5 or 6",{"$f":"(COUNTIF('Paste data here'!L2:L26,5)/C3*100)","v":24}]
[null,"7 or more",{"$f":"(COUNTIF('Paste data here'!L2:L26,7)/C3*100)","v":4}]
[]
[{"$nulls":7},"Would like extra opening hours (NB more than one answer may be selected         %"]
[{"$nulls":7},"Early morning",{"$f":"(COUNTIF('Paste data here'!P2:P26,\"=TRUE\")/C3)*100","v":{"v":8,"d":"8.0"}}]
[{"$nulls":7},"Lunchtimes",{"$f":"(COUNTIF('Paste data here'!Q2:Q26,\"=TRUE\")/C3)*100","v":{"v":0,"d":"0.0"}}]
[{"$nulls":7},"Evenings",{"$f":"(COUNTIF('Paste data here'!R2:R26,\"=TRUE\")/C5)*100","v":{"v":4.6875,"d":"4.7"}}]
[{"$nulls":7},"Weekends",{"$f":"(COUNTIF('Paste data here'!S2:S26,\"=TRUE\")/C3)*100","v":{"v":4,"d":"4.0"}}]
[{"$nulls":7},"None",{"$f":"(COUNTIF('Paste data here'!T2:T26,\"=TRUE\")/C3)*100","v":{"v":80,"d":"80.0"}}]

{"sheet":"Paste data here","index":2,"n_rows":26,"n_cols":44,"rows_kept":26}
["assessmenttype","FirstAppointmentDate","PractitionerName","OrganisationName","PracticeName","AgeAtFirstAppointment","Gender","Ethnic","EthnicDesc","Employment","EmploymentDesc","TimesSeen","TreatedByReceptionist","ReferralProcess","HoursOpenRating","HoursOpenAdditional_EarlyMorning","HoursOpenAdditional_Lunchtimes","HoursOpenAdditional_Evenings","HoursOpenAdditional_Weekends","HoursOpenAdditional_None","HowQuicklySeePractitioner","HowQuicklySeePractitionerRate","HowQuicklySeeAnyPractitioner","HowQuicklySeeAnyPractitionerRate","PractitionerSeenOnSameDayUrgent","WaitingTime","WaitingTimeRate","PhoneClinicGetThrough","PhoneSpeakToPractitioner","KnowPractitioner","ThoroughlyAsked","Listens","PutsAtEase","DecisionsInvolved","PractitionerExplains","TimeSpent","PractitionerPatience","PractitionerCaring","Understand","Cope","Healthy","GoodPoints","Improvements","Information"]
["CPAQ","2008-07-11","Jack Jones","Back2Health","Alton",65,"Female",1,"White",6,"Retired from paid work",3,6,6,6,false,false,false,false,true,0,0,0,0,0,1,6,6,0,true,6,6,6,6,6,6,6,6,1,1,1,"The variety of methods available and used to treat my problems. Listens to what I say and gives good advice.","Not that I can think of.","I have found great improvement after years of trying to manage my condition."]
["CPAQ","2008-07-11","Jack Jones","Back2Health","Alton",61,"Female",1,"White",6,"Retired from paid work",1,6,6,6,false,false,false,false,true,3,6,0,0,0,1,6,6,0,true,6,6,6,6,6,6,6,6,0,0,0,"It is excellent","No"]
["CPAQ","2008-07-15","Jack Jones","Back2Health","Alton",15,"Female",1,"White",3,"At school or in full time education",3,6,0,6,false,false,false,false,true,4,5,4,5,0,1,6,6,0,true,6,6,6,5,6,6,6,6,0,0,0,"He listens very well","Changing facilities , maybe a locker","We were recommended to Kalvin and we would be happy to recommend him to our friends and use him again if necessary."]
["CPAQ","2008-07-18","Jack Jones","Back2Health","Alton",52,"Male",1,"White",1,"Employed (full of part time, including self-employed",7,6,5,4,true,false,false,false,false,4,4,0,0,2,1,6,4,0,true,6,6,6,6,5,5,5,5,1,2,2]
["CPAQ","2008-07-12","Jack Jones","Back2Health Basingstoke","Back2Health Basingstoke",26,"Female",1,"White",1,"Employed (full of part time, including self-employed",1,5,0,5,false,false,false,false,true,0,0,1,5,0,2,4,5,0,true,5,5,5,5,5,4,5,5,2,1,1]
["CPAQ","2008-07-08","Suzie Smith Cooper ","Berwick Chiropractic","Boston Chiropractic",47,"Female",1,"White",1,"Employed (full of part time, including self-employed",5,4,0,4,false,false,false,false,true,4,3,4,3,1,1,6,5,5,true,5,5,5,5,5,5,5,5,1,1,3,"This particular Chiropractic care brings longer lasting pain relief than previous Chiropractic practice experienced. ",null,"On all visits I have been most satisfied with the treatment given by Dr Grant She has corrected 'niggles' in a few parts of my anatomy that I have felt for a long time. I feel completely at ease whilst being treated mainly due to Dr Cooper's friendly nature and  good understanding of my back complaint."]
["CPAQ","2008-07-19","Gwendoline Guttersnipe Griffiths DC BSc MCC                             ","Back2Health","Cowplain",68,"Male",1,"White",1,"Employed (full of part time, including self-employed",1,5,0,4,false,false,true,false,false,3,4,3,4,0,2,4,4,0,true,5,5,5,5,5,4,5,5,1,1,2,"It helps me to maintain an active lifestyle","None that springs to mind. Very satisfied.","None"]
["PTPAQ","2008-07-17","Mrs Rita Adams  ","Martonside Physiotherapy Ltd","Martonside Physiotherapy Ltd",56,"Female",1,"White",1,"Employed (full of part time, including self-employed",1,5,0,6,false,false,false,false,true,6,4,0,0,0,2,5,0,0,false,{"$nulls":11},"professional helpful ","no","excellent care given"]
["CPAQ","2008-07-11","Andrew Adams DC BSc                                  ","Back2Health","Midhurst",49,"Female",1,"White",1,"Employed (full of part time, including self-employed",1,4,0,3,true,false,true,false,false,6,3,0,0,0,1,4,2,0,true,5,5,5,5,5,5,5,5,3,3,3,null,"When ringing the Midhurst clinic, it nearly always goes to answer machine, even when they are in clinic hours.","It would be nice if both the receptionist would offer to ring Petersfield  if Anna is unable to accomodate an appointment at Midhurst, only SUzie offered this service."]
["CPAQ","2008-07-12","Gwendoline Guttersnipe Griffiths DC BSc MCC                             ","Back2Health","Midhurst",76,"Male",1,"White",6,"Retired from paid work",3,6,0,5,false,false,false,false,true,3,5,0,0,1,1,5,6,5,true,6,6,6,6,6,6,6,6,1,1,1,"yes its great",null,"just a great service no pressure when feeling enough is enough sorted out my problem will return whenever i need maintenanace on my back  many thanks to Guss"]
["CPAQ","2008-07-15","Gail Grimshaw DC ","Noble Chiropractic","Nuthatch Chiropractic Totnes",19,"Female",1,"White",1,"Employed (full of part time, including self-employed",3,5,4,6,false,false,false,false,true,0,0,0,0,0,3,3,6,6,true,6,6,6,6,6,6,6,6,3,3,3]
["CPAQ","2008-07-15","Matt Morton Christensen DC BSc MBA FCC                   ","Back2Health","Petersfield",49,"Female",1,"White",1,"Employed (full of part time, including self-employed",1,5,0,5,false,false,false,false,true,1,6,1,6,2,1,5,5,6,true,5,5,5,5,5,5,5,5,1,2,0]
["CPAQ","2008-07-15","Matt Morton Christensen DC BSc MBA FCC                   ","Back2Health","Petersfield",55,"Male",1,"White",1,"Employed (full of part time, including self-employed",1,5,6,0,false,false,false,false,true,1,6,0,0,2,2,3,5,0,true,6,6,6,6,6,6,6,6,3,3,3]
["CPAQ","2008-07-15","Jane Juliet DC MSc FCC                         ","Back2Health","Petersfield",33,"Female",1,"White",1,"Employed (full of part time, including self-employed",5,5,5,6,false,false,false,false,true,3,5,0,0,0,2,3,5,0,true,6,6,6,6,6,6,6,6,1,2,1]
["CPAQ","2008-07-18","Matt Morton Christensen DC BSc MBA FCC                   ","Back2Health","Petersfield",55,"Male",1,"White",1,"Employed (full of part time, including self-employed",1,5,0,5,false,false,false,false,true,1,6,1,6,2,2,5,6,6,true,6,6,6,6,6,6,6,6,1,1,1]
["CPAQ","2008-07-19","Andrew Adams DC BSc                                  ","Back2Health","Petersfield",71,"Male",1,"White",6,"Retired from paid work",3,6,0,6,false,false,false,false,true,2,5,2,5,2,1,6,6,0,true,6,6,6,6,6,6,6,6,1,1,1]
["CPAQ","2008-07-10","Naomi North MA(Oxon) DC","Salisbury Chiropractic Clinic","Salisbury Chiropractic Clinic",53,"Female",1,"White",5,"Looking after your home/family",3,6,0,6,false,false,false,false,true,0,0,0,0,0,1,6,6,0,true,6,6,6,6,6,6,6,6,1,1,1,"Not that I can think of.","No","None"]
["CPAQ","2008-07-10"," Waynetta Walker Witherspoon Dickinson DC BSc","The Chiropractic Clinic","South Shields Chiropractic Clinic",53,"Male",1,"White",1,"Employed (full of part time, including self-employed",3,5,0,5,false,false,false,true,false,1,5,1,5,2,1,5,5,6,true,5,5,5,4,5,5,5,5,1,1,2,"The availability of someone to talk to and get advice when I needed it"]
["CPAQ","2008-07-18","Gweneth Gawker BSc","The Chiropractic Clinic","South Shields Chiropractic Clinic",32,"Female",1,"White",1,"Employed (full of part time, including self-employed",3,5,0,3,false,false,true,false,false,4,5,0,0,0,1,6,6,0,true,5,5,6,5,6,4,6,5,1,3,3]
["CPAQ","2008-07-13","Waynetta Walker Chester-Davis MChiro. D.C. PGCert (Chiropractor)","Back2Health","Southsea",32,"Female",1,"White",1,"Employed (full of part time, including self-employed",3,6,0,6,false,false,false,false,true,3,5,3,5,0,1,5,5,0,true,6,6,6,6,6,6,6,6,1,1,1,"Wayne really knows what he's talking about and I always feel listened to","No","None"]
["CPAQ","2008-07-09","Gweneth Gawker BSc","The Chiropractic Clinic","Wansbeck Chiropractic Clinic",48,"Female",1,"White",1,"Employed (full of part time, including self-employed",5,6,0,5,false,false,false,false,true,3,5,3,5,0,1,6,6,0,true,6,6,6,6,6,6,6,6,1,1,2,"Very freindly and none threating atmosphere. Made to feel welcome and listened to from my first visit onwards. Excellant practise would recommend to others .","No "]
["CPAQ","2008-07-19","Gweneth Gawker BSc","The Chiropractic Clinic","Wansbeck Chiropractic Clinic",44,"Female",1,"White",1,"Employed (full of part time, including self-employed",5,6,6,6,false,false,false,false,true,1,6,0,0,0,1,6,6,0,true,6,6,6,6,6,5,6,6,2,2,3]
["CPAQ","2008-07-15","Gwendoline Guttersnipe Griffiths DC BSc MCC                             ","Back2Health","Waterlooville",18,"Male",1,"White",3,"At school or in full time education",1,5,0,6,false,false,false,false,true,2,5,0,0,2,2,5,6,0,true,6,6,6,6,6,6,6,6,1,1,1,"I first went as a juvenile and he was brilliant, explaining to me in language I could easily understand."]
["CPAQ","2008-07-17","Gwendoline Guttersnipe Griffiths DC BSc MCC                             ","Back2Health","Waterlooville",65,"Male",1,"White",6,"Retired from paid work",5,5,0,5,false,false,false,false,true,0,0,0,0,0,1,5,0,0,true,5,5,5,5,5,5,5,5,1,1,1,"Timekeeping "]
["CPAQ","2008-07-18","Gwendoline Guttersnipe Griffiths DC BSc MCC                             ","Back2Health","Waterlooville",44,"Female",1,"White",1,"Employed (full of part time, including self-employed",5,6,0,5,false,false,false,false,true,0,0,0,0,0,1,6,6,0,true,6,6,6,6,6,5,6,5,1,1,1,"Very friendly makes you feel at ease and relaxed","NO"]

{"sheet":"Instructions","index":3,"n_rows":0,"n_cols":0,"rows_kept":0}